[Event "Titled Tuesday Blitz April 26 Early 2022"]
[White "Bachmann, Axel"]
[Black "Rozman, Levy"]
[WhiteFideId "3700488"]
[BlackFideId "2039877"]
[WhiteElo "2587"]
[BlackElo "2376"]
[Result "0-1"]
[Round "02"]
[TimeControl "180+1"]
[Date "2022.04.26"]
[WhiteClock "0:00:05"]
[BlackClock "0:01:17"]

1. d4 {[%clk 0:02:49]}  d5 {[%clk 0:02:51]} 2. Nf3 {[%clk 0:02:49]}  Nf6 {[%clk 0:02:51]} 3. g3 {[%clk 0:02:50]}  Bg4 {[%clk 0:02:45]} 4. Ne5 {[%clk 0:02:49]}  h5 {[%clk 0:02:45]} 5. c4 {[%clk 0:02:45]}  e6 {[%clk 0:02:35]} 6. Nc3 {[%clk 0:02:41]}  c6 {[%clk 0:02:24]} 7. Qb3 {[%clk 0:01:59]}  Qb6 {[%clk 0:02:15]} 8. c5 {[%clk 0:01:57]}  Qc7 {[%clk 0:02:05]} 9. Bf4 {[%clk 0:01:55]}  Qc8 {[%clk 0:02:06]} 10. Qa4 {[%clk 0:01:28]}  h4 {[%clk 0:02:03]} 11. Bg5 {[%clk 0:01:00]}  hxg3 {[%clk 0:02:01]} 12. Bxf6 {[%clk 0:00:56]}  Rxh2 {[%clk 0:01:52]} 13. Rxh2 {[%clk 0:00:49]}  gxh2 {[%clk 0:01:52]} 14. Bg2 {[%clk 0:00:47]}  Bh3 {[%clk 0:01:52]} 15. Bh1 {[%clk 0:00:33]}  gxf6 {[%clk 0:01:49]} 16. Nd3 {[%clk 0:00:29]}  Bh6 {[%clk 0:01:44]} 17. e3 {[%clk 0:00:27]}  Bg4 {[%clk 0:01:41]} 18. f3 {[%clk 0:00:22]}  Bf5 {[%clk 0:01:39]} 19. Ke2 {[%clk 0:00:20]}  Nd7 {[%clk 0:01:35]} 20. Bg2 {[%clk 0:00:18]}  Qc7 {[%clk 0:01:35]} 21. Rh1 {[%clk 0:00:18]}  Qg3 {[%clk 0:01:34]} 22. Ne1 {[%clk 0:00:16]}  Bh3 {[%clk 0:01:31]} 23. Bxh3 {[%clk 0:00:13]}  Qxh3 {[%clk 0:01:32]} 24. Qb3 {[%clk 0:00:12]}  b5 {[%clk 0:01:31]} 25. cxb6 {[%clk 0:00:12]}  axb6 {[%clk 0:01:30]} 26. Qc2 {[%clk 0:00:11]}  f5 {[%clk 0:01:26]} 27. Nd1 {[%clk 0:00:11]}  c5 {[%clk 0:01:21]} 28. Nf2 {[%clk 0:00:10]}  Qg3 {[%clk 0:01:21]} 29. dxc5 {[%clk 0:00:09]}  bxc5 {[%clk 0:01:20]} 30. a3 {[%clk 0:00:10]}  c4 {[%clk 0:01:20]} 31. Qc3 {[%clk 0:00:10]}  Bg7 {[%clk 0:01:19]} 32. Qb4 {[%clk 0:00:10]}  Rb8 {[%clk 0:01:18]} 33. Qa4 {[%clk 0:00:06]}  Rxb2+ {[%clk 0:01:18]} 34. Kf1 {[%clk 0:00:05]}  Rxf2# {[%clk 0:01:17]} 0-1


[Site "https://www.chess.com"]

[Event "Titled Tuesday Blitz April 26 Early 2022"]
[White "Bacrot, Etienne"]
[Black "Ljukin, Sergei"]
[WhiteFideId "605506"]
[BlackFideId "14102200"]
[WhiteElo "2847"]
[BlackElo "2544"]
[Result "1-0"]
[Round "02"]
[TimeControl "180+1"]
[Date "2022.04.26"]
[WhiteClock "0:00:10"]
[BlackClock "0:00:08"]

1. e4 {[%clk 0:03:00]}  e6 {[%clk 0:02:53]} 2. Nf3 {[%clk 0:03:00]}  d5 {[%clk 0:02:53]} 3. exd5 {[%clk 0:03:01]}  exd5 {[%clk 0:02:53]} 4. d4 {[%clk 0:03:01]}  Nf6 {[%clk 0:02:53]} 5. Bd3 {[%clk 0:03:01]}  c5 {[%clk 0:02:54]} 6. O-O {[%clk 0:02:59]}  Nc6 {[%clk 0:02:54]} 7. Re1+ {[%clk 0:02:59]}  Be7 {[%clk 0:02:55]} 8. dxc5 {[%clk 0:02:58]}  O-O {[%clk 0:02:55]} 9. Be3 {[%clk 0:02:58]}  Ng4 {[%clk 0:02:54]} 10. Nbd2 {[%clk 0:02:33]}  Nxe3 {[%clk 0:02:52]} 11. Rxe3 {[%clk 0:02:33]}  Bxc5 {[%clk 0:02:52]} 12. Re2 {[%clk 0:02:34]}  Bg4 {[%clk 0:02:51]} 13. h3 {[%clk 0:02:31]}  Bh5 {[%clk 0:02:51]} 14. c3 {[%clk 0:02:27]}  Qb6 {[%clk 0:02:44]} 15. Qc2 {[%clk 0:02:15]}  Bg6 {[%clk 0:02:29]} 16. Nb3 {[%clk 0:02:13]}  Bd6 {[%clk 0:02:24]} 17. Rae1 {[%clk 0:02:10]}  Rac8 {[%clk 0:02:23]} 18. Qd1 {[%clk 0:02:07]}  Bh5 {[%clk 0:02:15]} 19. g4 {[%clk 0:02:01]}  Bg6 {[%clk 0:02:15]} 20. Bxg6 {[%clk 0:02:00]}  hxg6 {[%clk 0:02:11]} 21. Qxd5 {[%clk 0:02:01]}  Rcd8 {[%clk 0:02:09]} 22. Qc4 {[%clk 0:01:53]}  Bb8 {[%clk 0:01:59]} 23. Kg2 {[%clk 0:01:46]}  Kh8 {[%clk 0:01:37]} 24. Nbd4 {[%clk 0:01:34]}  Nxd4 {[%clk 0:01:34]} 25. cxd4 {[%clk 0:01:31]}  f6 {[%clk 0:01:25]} 26. Nh4 {[%clk 0:01:13]}  Kh7 {[%clk 0:01:16]} 27. Nf3 {[%clk 0:00:42]}  Qd6 {[%clk 0:01:12]} 28. Re6 {[%clk 0:00:39]}  Qf4 {[%clk 0:00:56]} 29. R1e4 {[%clk 0:00:38]}  Qh6 {[%clk 0:00:56]} 30. Re2 {[%clk 0:00:29]}  Bd6 {[%clk 0:00:49]} 31. d5 {[%clk 0:00:29]}  Rc8 {[%clk 0:00:34]} 32. Qd3 {[%clk 0:00:25]}  Rfd8 {[%clk 0:00:33]} 33. R2e4 {[%clk 0:00:18]}  Rc1 {[%clk 0:00:31]} 34. g5 {[%clk 0:00:18]}  fxg5 {[%clk 0:00:30]} 35. Rg4 {[%clk 0:00:16]}  Bf4 {[%clk 0:00:29]} 36. Ne5 {[%clk 0:00:15]}  Bxe5 {[%clk 0:00:29]} 37. Rxe5 {[%clk 0:00:15]}  Rd6 {[%clk 0:00:14]} 38. Rexg5 {[%clk 0:00:14]}  Kg8 {[%clk 0:00:10]} 39. Qg3 {[%clk 0:00:11]}  Rb6 {[%clk 0:00:08]} 40. Rh4 {[%clk 0:00:10]} 1-0


[Site "https://www.chess.com"]

[Event "Titled Tuesday Blitz April 26 Early 2022"]
[White "Begunov, Konstantin"]
[Black "Kejzar, Petra"]
[WhiteFideId "4118510"]
[BlackFideId "14610213"]
[WhiteElo "2262"]
[BlackElo "2003"]
[Result "1-0"]
[Round "02"]
[TimeControl "180+1"]
[Date "2022.04.26"]
[WhiteClock "0:00:30"]
[BlackClock "0:00:21"]

1. d4 {[%clk 0:02:54]}  Nf6 {[%clk 0:02:59]} 2. c4 {[%clk 0:02:54]}  d6 {[%clk 0:02:59]} 3. Nc3 {[%clk 0:02:53]}  e5 {[%clk 0:02:57]} 4. Nf3 {[%clk 0:02:53]}  Nbd7 {[%clk 0:02:54]} 5. g3 {[%clk 0:02:52]}  g6 {[%clk 0:02:53]} 6. Bg2 {[%clk 0:02:52]}  Bg7 {[%clk 0:02:53]} 7. O-O {[%clk 0:02:52]}  O-O {[%clk 0:02:53]} 8. e4 {[%clk 0:02:52]}  a5 {[%clk 0:02:46]} 9. h3 {[%clk 0:02:51]}  c6 {[%clk 0:02:43]} 10. Be3 {[%clk 0:02:51]}  Qc7 {[%clk 0:02:42]} 11. c5 {[%clk 0:02:40]}  dxc5 {[%clk 0:02:34]} 12. dxe5 {[%clk 0:02:32]}  Nxe5 {[%clk 0:02:33]} 13. Nxe5 {[%clk 0:02:32]}  Qxe5 {[%clk 0:02:31]} 14. f4 {[%clk 0:02:33]}  Qe7 {[%clk 0:02:26]} 15. e5 {[%clk 0:02:31]}  Nd5 {[%clk 0:02:17]} 16. Nxd5 {[%clk 0:01:59]}  cxd5 {[%clk 0:02:17]} 17. Qxd5 {[%clk 0:01:59]}  Rd8 {[%clk 0:02:11]} 18. Qxc5 {[%clk 0:01:56]}  Qxc5 {[%clk 0:02:11]} 19. Bxc5 {[%clk 0:01:56]}  Rd2 {[%clk 0:02:11]} 20. Rfd1 {[%clk 0:01:41]}  Rxd1+ {[%clk 0:01:59]} 21. Rxd1 {[%clk 0:01:42]}  Be6 {[%clk 0:01:58]} 22. Bxb7 {[%clk 0:01:00]}  Rb8 {[%clk 0:01:57]} 23. b3 {[%clk 0:00:59]}  Bf8 {[%clk 0:01:50]} 24. Bxf8 {[%clk 0:00:55]}  Kxf8 {[%clk 0:01:51]} 25. Bg2 {[%clk 0:00:53]}  a4 {[%clk 0:01:50]} 26. bxa4 {[%clk 0:00:50]}  Bxa2 {[%clk 0:01:49]} 27. Ra1 {[%clk 0:00:50]}  Bc4 {[%clk 0:01:48]} 28. a5 {[%clk 0:00:48]}  Ba6 {[%clk 0:01:48]} 29. Bf1 {[%clk 0:00:45]}  Ra8 {[%clk 0:01:44]} 30. Bxa6 {[%clk 0:00:44]}  Rxa6 {[%clk 0:01:45]} 31. Kf2 {[%clk 0:00:44]}  Ke7 {[%clk 0:01:45]} 32. Ke3 {[%clk 0:00:44]}  Kd7 {[%clk 0:01:42]} 33. Kd4 {[%clk 0:00:45]}  Kc6 {[%clk 0:01:42]} 34. Kc4 {[%clk 0:00:38]}  Kb7 {[%clk 0:01:37]} 35. Kd5 {[%clk 0:00:35]}  Ka7 {[%clk 0:01:35]} 36. g4 {[%clk 0:00:33]}  Re6 {[%clk 0:01:30]} 37. a6 {[%clk 0:00:33]}  Rb6 {[%clk 0:01:22]} 38. f5 {[%clk 0:00:31]}  Rb5+ {[%clk 0:01:13]} 39. Kd6 {[%clk 0:00:30]}  Rb6+ {[%clk 0:00:59]} 40. Ke7 {[%clk 0:00:30]}  gxf5 {[%clk 0:00:51]} 41. gxf5 {[%clk 0:00:30]}  Rb5 {[%clk 0:00:51]} 42. Kf6 {[%clk 0:00:29]}  Rc5 {[%clk 0:00:25]} 43. h4 {[%clk 0:00:30]}  Rb5 {[%clk 0:00:24]} 44. h5 {[%clk 0:00:30]}  Rc5 {[%clk 0:00:21]} 45. h6 {[%clk 0:00:30]} 1-0


[Site "https://www.chess.com"]

[Event "Titled Tuesday Blitz April 26 Early 2022"]
[White "Bongo Akanga Ndjila, Barthelemy"]
[Black "Devaev, Alexander"]
[WhiteFideId "10609431"]
[BlackFideId "4169395"]
[WhiteElo "1768"]
[BlackElo "2185"]
[Result "0-1"]
[Round "02"]
[TimeControl "180+1"]
[Date "2022.04.26"]
[WhiteClock "0:01:21"]
[BlackClock "0:01:27"]

1. d4 {[%clk 0:03:00]}  Nf6 {[%clk 0:02:58]} 2. c4 {[%clk 0:03:01]}  e6 {[%clk 0:02:58]} 3. Nc3 {[%clk 0:03:00]}  Bb4 {[%clk 0:02:59]} 4. a3 {[%clk 0:03:01]}  Bxc3+ {[%clk 0:02:58]} 5. bxc3 {[%clk 0:03:02]}  c5 {[%clk 0:02:59]} 6. f3 {[%clk 0:03:01]}  Nc6 {[%clk 0:02:59]} 7. e4 {[%clk 0:02:58]}  d6 {[%clk 0:03:00]} 8. Be3 {[%clk 0:02:55]}  b6 {[%clk 0:03:00]} 9. Bd3 {[%clk 0:02:54]}  e5 {[%clk 0:03:00]} 10. Ne2 {[%clk 0:02:50]}  h6 {[%clk 0:02:57]} 11. O-O {[%clk 0:02:49]}  Qe7 {[%clk 0:02:51]} 12. Rb1 {[%clk 0:02:42]}  Bd7 {[%clk 0:02:50]} 13. d5 {[%clk 0:02:40]}  Na5 {[%clk 0:02:49]} 14. Ng3 {[%clk 0:02:37]}  g6 {[%clk 0:02:49]} 15. f4 {[%clk 0:02:36]}  Ng4 {[%clk 0:02:43]} 16. Bd2 {[%clk 0:02:33]}  exf4 {[%clk 0:02:42]} 17. Bxf4 {[%clk 0:02:27]}  Ne5 {[%clk 0:02:40]} 18. Qe2 {[%clk 0:02:21]}  g5 {[%clk 0:02:32]} 19. Bxe5 {[%clk 0:02:19]}  Qxe5 {[%clk 0:02:32]} 20. Rbe1 {[%clk 0:02:14]}  O-O {[%clk 0:02:23]} 21. Nh5 {[%clk 0:02:14]}  f5 {[%clk 0:01:59]} 22. exf5 {[%clk 0:02:10]}  Qxe2 {[%clk 0:01:58]} 23. Rxe2 {[%clk 0:02:10]}  Kf7 {[%clk 0:01:57]} 24. f6 {[%clk 0:02:05]}  Rae8 {[%clk 0:01:57]} 25. Rfe1 {[%clk 0:02:03]}  Rxe2 {[%clk 0:01:56]} 26. Rxe2 {[%clk 0:02:03]}  Re8 {[%clk 0:01:56]} 27. Rxe8 {[%clk 0:01:56]}  Kxe8 {[%clk 0:01:55]} 28. Bg6+ {[%clk 0:01:56]}  Kf8 {[%clk 0:01:55]} 29. h4 {[%clk 0:01:48]}  Bg4 {[%clk 0:01:49]} 30. hxg5 {[%clk 0:01:46]}  Bxh5 {[%clk 0:01:45]} 31. Bxh5 {[%clk 0:01:43]}  hxg5 {[%clk 0:01:46]} 32. Kf2 {[%clk 0:01:33]}  Nxc4 {[%clk 0:01:46]} 33. Kg3 {[%clk 0:01:32]}  Ne5 {[%clk 0:01:47]} 34. Bd1 {[%clk 0:01:25]}  Kf7 {[%clk 0:01:45]} 35. Kf2 {[%clk 0:01:19]}  Kxf6 {[%clk 0:01:45]} 36. Ke3 {[%clk 0:01:20]}  Nc4+ {[%clk 0:01:32]} 37. Ke4 {[%clk 0:01:21]}  Nxa3 {[%clk 0:01:27]} 0-1


[Site "https://www.chess.com"]

[Event "Titled Tuesday Blitz April 26 Early 2022"]
[White "Bortnyk, Olexandr"]
[Black "Hasangatin, Ramil"]
[WhiteFideId "14120828"]
[BlackFideId "4122160"]
[WhiteElo "2723"]
[BlackElo "2375"]
[Result "1-0"]
[Round "02"]
[TimeControl "180+1"]
[Date "2022.04.26"]
[WhiteClock "0:00:05"]
[BlackClock "0:00:04"]

1. e4 {[%clk 0:02:59]}  d5 {[%clk 0:02:58]} 2. exd5 {[%clk 0:02:58]}  Qxd5 {[%clk 0:02:59]} 3. Nc3 {[%clk 0:02:58]}  Qd6 {[%clk 0:02:59]} 4. d4 {[%clk 0:02:58]}  Nf6 {[%clk 0:03:00]} 5. Bd3 {[%clk 0:02:58]}  c6 {[%clk 0:03:00]} 6. Nge2 {[%clk 0:02:58]}  Bg4 {[%clk 0:02:50]} 7. f3 {[%clk 0:02:58]}  Bh5 {[%clk 0:02:50]} 8. Bf4 {[%clk 0:02:59]}  Qd8 {[%clk 0:02:48]} 9. Qd2 {[%clk 0:02:59]}  Bg6 {[%clk 0:02:48]} 10. O-O-O {[%clk 0:02:59]}  e6 {[%clk 0:02:48]} 11. Ne4 {[%clk 0:02:57]}  Be7 {[%clk 0:02:47]} 12. h4 {[%clk 0:02:56]}  Nd5 {[%clk 0:02:20]} 13. Be5 {[%clk 0:02:54]}  Nb4 {[%clk 0:02:11]} 14. Bxg7 {[%clk 0:02:38]}  Rg8 {[%clk 0:02:09]} 15. Be5 {[%clk 0:02:27]}  Nxa2+ {[%clk 0:01:49]} 16. Kb1 {[%clk 0:02:26]}  Nb4 {[%clk 0:01:49]} 17. Nf6+ {[%clk 0:02:00]}  Bxf6 {[%clk 0:01:30]} 18. Qxb4 {[%clk 0:02:00]}  Bxe5 {[%clk 0:01:15]} 19. dxe5 {[%clk 0:02:01]}  Qe7 {[%clk 0:01:07]} 20. Qb3 {[%clk 0:01:48]}  Bxd3 {[%clk 0:01:03]} 21. Qxd3 {[%clk 0:01:35]}  Nd7 {[%clk 0:01:03]} 22. Qd4 {[%clk 0:01:14]}  Rxg2 {[%clk 0:00:53]} 23. Nf4 {[%clk 0:01:14]}  Rg8 {[%clk 0:00:47]} 24. Nh5 {[%clk 0:01:13]}  O-O-O {[%clk 0:00:46]} 25. Qxa7 {[%clk 0:01:12]}  Qc5 {[%clk 0:00:38]} 26. Qxc5 {[%clk 0:01:10]}  Nxc5 {[%clk 0:00:39]} 27. Nf6 {[%clk 0:01:11]}  Rg7 {[%clk 0:00:20]} 28. Rxd8+ {[%clk 0:01:07]}  Kxd8 {[%clk 0:00:20]} 29. Rd1+ {[%clk 0:01:08]}  Kc8 {[%clk 0:00:20]} 30. h5 {[%clk 0:01:08]}  h6 {[%clk 0:00:20]} 31. f4 {[%clk 0:00:59]}  Rg2 {[%clk 0:00:14]} 32. b4 {[%clk 0:00:57]}  Na6 {[%clk 0:00:13]} 33. c3 {[%clk 0:00:44]}  Nc7 {[%clk 0:00:13]} 34. c4 {[%clk 0:00:43]}  Na6 {[%clk 0:00:12]} 35. Rd7 {[%clk 0:00:42]}  Nxb4 {[%clk 0:00:12]} 36. Rxf7 {[%clk 0:00:42]}  Nd3 {[%clk 0:00:08]} 37. Ne4 {[%clk 0:00:41]}  Kb8 {[%clk 0:00:06]} 38. Rd7 {[%clk 0:00:35]}  Nxf4 {[%clk 0:00:06]} 39. Nd6 {[%clk 0:00:24]}  Nxh5 {[%clk 0:00:06]} 40. Rxb7+ {[%clk 0:00:24]}  Ka8 {[%clk 0:00:07]} 41. Re7 {[%clk 0:00:24]}  Nf4 {[%clk 0:00:07]} 42. Rc7 {[%clk 0:00:17]}  Re2 {[%clk 0:00:07]} 43. Rxc6 {[%clk 0:00:13]}  Rxe5 {[%clk 0:00:08]} 44. c5 {[%clk 0:00:13]}  Nd3 {[%clk 0:00:08]} 45. Rc8+ {[%clk 0:00:14]}  Ka7 {[%clk 0:00:08]} 46. c6 {[%clk 0:00:15]}  Rc5 {[%clk 0:00:07]} 47. c7 {[%clk 0:00:07]}  Kb6 {[%clk 0:00:08]} 48. Ne8 {[%clk 0:00:08]}  Ka7 {[%clk 0:00:05]} 49. Rb8 {[%clk 0:00:07]}  Rxc7 {[%clk 0:00:04]} 50. Rd8 {[%clk 0:00:05]}  Nc5 {[%clk 0:00:04]} 51. Nxc7 {[%clk 0:00:05]} 1-0


[Site "https://www.chess.com"]

[Event "Titled Tuesday Blitz April 26 Early 2022"]
[White "Buchenau, Frank"]
[Black "Gu, Xiaobing"]
[WhiteFideId "4604350"]
[BlackFideId "8602611"]
[WhiteElo "2193"]
[BlackElo "2174"]
[Result "1-0"]
[Round "02"]
[TimeControl "180+1"]
[Date "2022.04.26"]
[WhiteClock "0:00:11"]
[BlackClock "0:00:06"]

1. e4 {[%clk 0:02:56]}  c5 {[%clk 0:02:57]} 2. Nf3 {[%clk 0:02:56]}  d6 {[%clk 0:02:56]} 3. Bb5+ {[%clk 0:02:56]}  Nc6 {[%clk 0:02:46]} 4. O-O {[%clk 0:02:54]}  Bd7 {[%clk 0:02:45]} 5. Re1 {[%clk 0:02:53]}  Nf6 {[%clk 0:02:43]} 6. c3 {[%clk 0:02:52]}  a6 {[%clk 0:02:43]} 7. Bc4 {[%clk 0:02:52]}  Bg4 {[%clk 0:02:38]} 8. d4 {[%clk 0:02:50]}  cxd4 {[%clk 0:02:23]} 9. cxd4 {[%clk 0:02:49]}  Bxf3 {[%clk 0:02:21]} 10. gxf3 {[%clk 0:02:48]}  e6 {[%clk 0:02:21]} 11. d5 {[%clk 0:02:48]}  Ne5 {[%clk 0:02:07]} 12. Bf1 {[%clk 0:02:46]}  exd5 {[%clk 0:01:39]} 13. exd5 {[%clk 0:02:42]}  Be7 {[%clk 0:01:39]} 14. f4 {[%clk 0:02:34]}  Ng6 {[%clk 0:01:39]} 15. f5 {[%clk 0:02:22]}  Ne5 {[%clk 0:01:26]} 16. f4 {[%clk 0:02:22]}  Neg4 {[%clk 0:01:22]} 17. Qe2 {[%clk 0:02:12]}  O-O {[%clk 0:00:47]} 18. h3 {[%clk 0:01:55]}  Qb6+ {[%clk 0:00:47]} 19. Kg2 {[%clk 0:01:47]}  Nh6 {[%clk 0:00:40]} 20. Be3 {[%clk 0:01:27]}  Qa5 {[%clk 0:00:39]} 21. Nc3 {[%clk 0:01:21]}  Nxd5 {[%clk 0:00:38]} 22. Nxd5 {[%clk 0:01:20]}  Qxd5+ {[%clk 0:00:38]} 23. Kh2 {[%clk 0:01:17]}  Nxf5 {[%clk 0:00:38]} 24. Rad1 {[%clk 0:01:15]}  Qa5 {[%clk 0:00:35]} 25. Bd2 {[%clk 0:01:11]}  Qb6 {[%clk 0:00:33]} 26. Bc3 {[%clk 0:01:03]}  Rae8 {[%clk 0:00:27]} 27. Qg4 {[%clk 0:00:59]}  g6 {[%clk 0:00:20]} 28. Rd5 {[%clk 0:00:50]}  Qf2+ {[%clk 0:00:18]} 29. Bg2 {[%clk 0:00:48]}  Ne3 {[%clk 0:00:19]} 30. Rxe3 {[%clk 0:00:36]}  Qxe3 {[%clk 0:00:18]} 31. f5 {[%clk 0:00:31]}  Bd8 {[%clk 0:00:16]} 32. fxg6 {[%clk 0:00:18]}  fxg6 {[%clk 0:00:16]} 33. Rd4 {[%clk 0:00:15]}  Bb6 {[%clk 0:00:15]} 34. Bd5+ {[%clk 0:00:15]}  Rf7 {[%clk 0:00:14]} 35. Rf4 {[%clk 0:00:11]}  Qg1+ {[%clk 0:00:09]} 36. Qxg1 {[%clk 0:00:10]}  Re2+ {[%clk 0:00:08]} 37. Qg2 {[%clk 0:00:09]}  Rxg2+ {[%clk 0:00:06]} 38. Kxg2 {[%clk 0:00:10]}  Kf8 {[%clk 0:00:06]} 39. Rxf7+ {[%clk 0:00:10]}  Ke8 {[%clk 0:00:06]} 40. Rxh7 {[%clk 0:00:11]} 1-0


[Site "https://www.chess.com"]

[Event "Titled Tuesday Blitz April 26 Early 2022"]
[White "Chernomordik, Pavel"]
[Black "Mangialardo, Tiago Carvalho"]
[WhiteFideId "2804530"]
[BlackFideId "2130718"]
[WhiteElo "2220"]
[BlackElo "2051"]
[Result "1-0"]
[Round "02"]
[TimeControl "180+1"]
[Date "2022.04.26"]
[WhiteClock "0:01:44"]
[BlackClock "0:00:03"]

1. e4 {[%clk 0:03:00]}  Nf6 {[%clk 0:03:00]} 2. Nc3 {[%clk 0:03:00]}  d5 {[%clk 0:03:00]} 3. e5 {[%clk 0:03:00]}  Nfd7 {[%clk 0:03:00]} 4. f4 {[%clk 0:03:00]}  e6 {[%clk 0:02:54]} 5. Nf3 {[%clk 0:02:59]}  c5 {[%clk 0:02:55]} 6. g3 {[%clk 0:02:58]}  Nc6 {[%clk 0:02:54]} 7. Bg2 {[%clk 0:02:58]}  f6 {[%clk 0:02:51]} 8. O-O {[%clk 0:02:54]}  fxe5 {[%clk 0:02:49]} 9. fxe5 {[%clk 0:02:53]}  Ndxe5 {[%clk 0:02:50]} 10. Nxe5 {[%clk 0:02:52]}  Nxe5 {[%clk 0:02:50]} 11. Qh5+ {[%clk 0:02:52]}  Ng6 {[%clk 0:02:50]} 12. d3 {[%clk 0:02:50]}  Be7 {[%clk 0:02:33]} 13. Bd2 {[%clk 0:02:47]}  Bf6 {[%clk 0:02:30]} 14. Rae1 {[%clk 0:02:42]}  O-O {[%clk 0:02:29]} 15. Bh3 {[%clk 0:02:42]}  Bd4+ {[%clk 0:02:16]} 16. Kh1 {[%clk 0:02:41]}  Rxf1+ {[%clk 0:02:15]} 17. Rxf1 {[%clk 0:02:40]}  Bd7 {[%clk 0:01:34]} 18. Nxd5 {[%clk 0:02:34]}  Kh8 {[%clk 0:01:16]} 19. Nc3 {[%clk 0:02:24]}  Bc6+ {[%clk 0:01:07]} 20. Bg2 {[%clk 0:02:23]}  Qd6 {[%clk 0:00:50]} 21. Ne4 {[%clk 0:02:16]}  Qe7 {[%clk 0:00:34]} 22. Ng5 {[%clk 0:02:11]}  Bxg2+ {[%clk 0:00:22]} 23. Kxg2 {[%clk 0:02:10]}  h6 {[%clk 0:00:19]} 24. Nf7+ {[%clk 0:01:50]}  Kh7 {[%clk 0:00:18]} 25. Nxh6 {[%clk 0:01:49]}  gxh6 {[%clk 0:00:03]} 26. Qxh6+ {[%clk 0:01:48]}  Kg8 {[%clk 0:00:02]} 27. Qxg6+ {[%clk 0:01:48]}  Bg7 {[%clk 0:00:03]} 28. Bc3 {[%clk 0:01:44]} 1-0


[Site "https://www.chess.com"]

[Event "Titled Tuesday Blitz April 26 Early 2022"]
[White "Danilenko, Dmitriy"]
[Black "Janaszak, Dawid"]
[WhiteFideId "14120844"]
[BlackFideId "1119206"]
[WhiteElo "2606"]
[BlackElo "2199"]
[Result "1-0"]
[Round "02"]
[TimeControl "180+1"]
[Date "2022.04.26"]
[WhiteClock "0:00:19"]
[BlackClock "0:00:02"]

1. e4 {[%clk 0:03:00]}  c5 {[%clk 0:02:58]} 2. Nc3 {[%clk 0:03:00]}  a6 {[%clk 0:02:53]} 3. Nf3 {[%clk 0:02:56]}  b5 {[%clk 0:02:52]} 4. a4 {[%clk 0:02:50]}  b4 {[%clk 0:02:51]} 5. Nd5 {[%clk 0:02:51]}  Bb7 {[%clk 0:02:50]} 6. d3 {[%clk 0:02:51]}  e6 {[%clk 0:02:49]} 7. Ne3 {[%clk 0:02:51]}  d5 {[%clk 0:02:46]} 8. exd5 {[%clk 0:02:48]}  exd5 {[%clk 0:02:46]} 9. Be2 {[%clk 0:02:46]}  Nf6 {[%clk 0:02:46]} 10. O-O {[%clk 0:02:46]}  Bd6 {[%clk 0:02:44]} 11. Nf5 {[%clk 0:02:45]}  O-O {[%clk 0:02:42]} 12. d4 {[%clk 0:02:36]}  cxd4 {[%clk 0:02:30]} 13. Nxd6 {[%clk 0:02:33]}  Qxd6 {[%clk 0:02:29]} 14. Qxd4 {[%clk 0:02:33]}  Nc6 {[%clk 0:02:28]} 15. Qh4 {[%clk 0:02:33]}  Ne4 {[%clk 0:02:27]} 16. Bf4 {[%clk 0:02:28]}  Qg6 {[%clk 0:02:20]} 17. Bd3 {[%clk 0:02:23]}  f5 {[%clk 0:02:11]} 18. Rfe1 {[%clk 0:01:58]}  a5 {[%clk 0:02:10]} 19. Rad1 {[%clk 0:01:57]}  Rad8 {[%clk 0:01:53]} 20. Bb5 {[%clk 0:01:56]}  Qg4 {[%clk 0:01:42]} 21. Bc7 {[%clk 0:01:42]}  Rc8 {[%clk 0:01:30]} 22. Bb6 {[%clk 0:01:38]}  Qxh4 {[%clk 0:00:57]} 23. Nxh4 {[%clk 0:01:34]}  Rf6 {[%clk 0:00:29]} 24. Rxd5 {[%clk 0:01:16]}  Ne7 {[%clk 0:00:25]} 25. Rd7 {[%clk 0:01:16]}  Rxb6 {[%clk 0:00:22]} 26. Rxe7 {[%clk 0:01:16]}  Rxc2 {[%clk 0:00:20]} 27. Nxf5 {[%clk 0:01:14]}  g6 {[%clk 0:00:15]} 28. Nh6+ {[%clk 0:01:12]}  Kh8 {[%clk 0:00:15]} 29. Nf7+ {[%clk 0:01:04]}  Kg8 {[%clk 0:00:14]} 30. Nd8 {[%clk 0:01:04]}  Bd5 {[%clk 0:00:11]} 31. f3 {[%clk 0:00:53]}  Nd6 {[%clk 0:00:10]} 32. Rd7 {[%clk 0:00:48]}  Bb3 {[%clk 0:00:03]} 33. Ree7 {[%clk 0:00:45]}  Rc1+ {[%clk 0:00:03]} 34. Kf2 {[%clk 0:00:45]}  Rc2+ {[%clk 0:00:04]} 35. Ke1 {[%clk 0:00:34]}  Rc1+ {[%clk 0:00:03]} 36. Kd2 {[%clk 0:00:35]}  Rc2+ {[%clk 0:00:04]} 37. Kd3 {[%clk 0:00:35]}  Rc1 {[%clk 0:00:03]} 38. Rg7+ {[%clk 0:00:35]}  Kh8 {[%clk 0:00:03]} 39. Rxh7+ {[%clk 0:00:35]}  Kg8 {[%clk 0:00:04]} 40. Rdg7+ {[%clk 0:00:35]}  Kf8 {[%clk 0:00:04]} 41. Rc7 {[%clk 0:00:18]}  Rxc7 {[%clk 0:00:02]} 42. Rxc7 {[%clk 0:00:18]}  Nxb5 {[%clk 0:00:02]} 43. axb5 {[%clk 0:00:19]}  Rd6+ {[%clk 0:00:03]} 44. Ke4 {[%clk 0:00:17]}  Rxd8 {[%clk 0:00:04]} 45. b6 {[%clk 0:00:17]}  a4 {[%clk 0:00:03]} 46. b7 {[%clk 0:00:17]}  a3 {[%clk 0:00:03]} 47. Rc8 {[%clk 0:00:16]}  Bd5+ {[%clk 0:00:03]} 48. Ke5 {[%clk 0:00:17]}  Bxb7 {[%clk 0:00:03]} 49. Rxd8+ {[%clk 0:00:17]}  Ke7 {[%clk 0:00:03]} 50. Rb8 {[%clk 0:00:17]}  Bc6 {[%clk 0:00:03]} 51. bxa3 {[%clk 0:00:18]}  bxa3 {[%clk 0:00:03]} 52. Rb3 {[%clk 0:00:18]}  g5 {[%clk 0:00:02]} 53. Rxa3 {[%clk 0:00:18]}  g4 {[%clk 0:00:02]} 54. fxg4 {[%clk 0:00:19]} 1-0


[Site "https://www.chess.com"]

[Event "Titled Tuesday Blitz April 26 Early 2022"]
[White "De Arruda, Leandro Formes"]
[Black "Sihite, Chelsie Monica Ignesias"]
[WhiteFideId "22722009"]
[BlackFideId "7101198"]
[WhiteElo "1852"]
[BlackElo "2224"]
[Result "1-0"]
[Round "02"]
[TimeControl "180+1"]
[Date "2022.04.26"]
[WhiteClock "0:01:55"]
[BlackClock "0:02:52"]

1. d4 {[%clk 0:02:56]}  Nf6 {[%clk 0:02:59]} 2. e3 {[%clk 0:02:57]}  e6 {[%clk 0:02:59]} 3. Nf3 {[%clk 0:02:58]}  b6 {[%clk 0:02:59]} 4. Bd3 {[%clk 0:02:58]}  Bb7 {[%clk 0:03:00]} 5. Nbd2 {[%clk 0:02:59]}  Be7 {[%clk 0:03:01]} 6. O-O {[%clk 0:02:59]}  d5 {[%clk 0:03:01]} 7. b3 {[%clk 0:03:00]}  O-O {[%clk 0:03:02]} 8. Bb2 {[%clk 0:03:00]}  Nbd7 {[%clk 0:03:03]} 9. Ne5 {[%clk 0:03:01]}  c5 {[%clk 0:03:03]} 10. f4 {[%clk 0:02:54]}  Rc8 {[%clk 0:03:01]} 11. c3 {[%clk 0:02:46]}  a6 {[%clk 0:03:01]} 12. Qf3 {[%clk 0:02:37]}  b5 {[%clk 0:03:02]} 13. g4 {[%clk 0:02:37]}  Qb6 {[%clk 0:03:01]} 14. g5 {[%clk 0:02:37]}  Nxe5 {[%clk 0:03:01]} 15. fxe5 {[%clk 0:02:34]}  Nd7 {[%clk 0:02:58]} 16. Qh5 {[%clk 0:02:30]}  g6 {[%clk 0:02:59]} 17. Qh6 {[%clk 0:02:29]}  Rfe8 {[%clk 0:02:55]} 18. Rxf7 {[%clk 0:02:10]}  Kxf7 {[%clk 0:02:55]} 19. Qxh7+ {[%clk 0:02:10]}  Kf8 {[%clk 0:02:56]} 20. Rf1+ {[%clk 0:02:09]}  Bf6 {[%clk 0:02:55]} 21. Bxg6 {[%clk 0:01:56]}  Re7 {[%clk 0:02:52]} 22. Qh8# {[%clk 0:01:55]} 1-0


[Site "https://www.chess.com"]